{"text_format":"1","workbook":"xlsx","n_sheets":5,"sheets":["Form_44 (IstYear)","Form_44(2nd Year)","Form_44(3rd Year) ","BILL_28","TOTAL_BILL_AMOUNT"],"not_rendered":{"charts":0,"images":6,"macros":1,"external_links":2,"defined_names":22,"comments":3,"pivot_tables":0},"unopened":[],"bounds":{"document_bytes":16777216,"sheet_cells":100000,"rows_first":2000,"rows_last":500,"rows_between":2000,"halvings":0,"cell_chars":16384,"cell_head_chars":4096},"cells_cut":0,"cells_raw":0,"read":"whole","date_system":"1900"}

{"sheet":"Form_44 (IstYear)","index":0,"n_rows":39,"n_cols":43,"rows_kept":39,"cut":false,"hidden":false,"merged":[[38,40,38,43],[35,1,35,15],[35,16,35,31],[36,16,37,31],[38,6,38,15],[38,16,38,17],[38,29,38,31],[34,0,34,29],[6,19,6,20],[6,21,6,22],[6,23,6,24],[6,25,6,26],[6,27,8,27],[6,28,8,28],[6,7,6,8],[6,9,6,10],[6,11,6,12],[6,13,6,14],[6,15,6,16],[6,17,6,18],[6,29,8,29],[7,5,7,6],[8,1,8,6],[2,0,2,1],[2,2,2,31],[3,0,3,31],[4,0,4,31],[5,2,6,2],[5,3,6,3],[5,4,6,4],[5,5,6,5],[5,7,5,26],[6,0,8,0],[6,30,8,30],[6,31,8,31],[0,0,0,29],[0,30,0,31],[1,0,1,13],[1,14,1,18],[1,19,1,26],[1,27,1,28],[1,29,1,31]]}
["çkfof/kd f'k{kk e.My] jktLFkku] tks/kiqj ",null,null,null,null,null,null,null,null,null,null,null,null,null,null,null,null,null,null,null,null,null,null,null,null,null,null,null,null,null,"FORM-44",null,null,null,null,null,null,0,null,null,null,0,11]
["çkfof/kd f'k{kk e.My] jktLFkku }kjk vk;ksftr ijh{kk gsrq dk;Zjr vf/kdkjh @ deZpkfj;ksa ds ijh{kk ikfjJfed foi= ¼izzFke o\"kZ½",null,null,null,null,null,null,null,null,null,null,null,null,null,"ijh{kk dsUnz dksM >>>",null,null,null,null,null,null,null,null,null,null,null,null,"l=",null,"2016-17",null,null,null,null,null,null,null,1,null,null,null,1,12]
["laLFkku dk uke o iw.kZ irk e; dksM >>>",null,null,null,null,null,null,null,null,null,null,null,null,null,null,null,null,null,null,null,null,null,null,null,null,null,null,null,null,null,null,null,null,null,null,null,null,2,null,null,null,2,13]
["¼1½ dkWye dksM esa ijh{kk dsUnz v/kh{kd gsrq 11] vfrfjDr ijh{kk dsUnz v/kh{kd gsrq 12] ijh{kk oh{kd gsrq 13] ea=kyf;d 14 o prqFkZ Js.kh deZpkjh gsrq 15 vafdr djsaA",null,null,null,null,null,null,null,null,null,null,null,null,null,null,null,null,null,null,null,null,null,null,null,null,null,null,null,null,null,null,null,null,null,null,null,null,null,null,null,null,null,14]
["¼2½ fnukad@ikjh okys dkWye esa mifLFkfr fnol@ikjh ds fnu 1] 2 vafdr djsaA vuqifLFkfr ij 0 vafdr djsa ¼;k dkWye [kkyh NksM+s½A dqy ikjh o dqy jkf'k okys dkWye esas x.kuk Lor% gh gksxhA vr% bl dkWye esa viuh rjQ ls dqN vafdr ugha djsaA ",null,null,null,null,null,null,null,null,null,null,null,null,null,null,null,null,null,null,null,null,null,null,null,null,null,null,null,null,null,null,null,null,null,null,null,null,null,null,null,null,null,15]
[null,null,"Bank Name","IFSC Code ","Account No.","PAN Number",null,"Exam Date"]
["SN.","Invigilator name in capital letters\n(Sh./Mrs./Miss)",null,null,null,null,"CODE  ","2017-08-18",null,"2017-08-21",null,"2017-08-24",null,"2017-08-26",null,"2017-08-29",null,"2017-09-01",null,null,null,null,null,null,null,null,null,"Extra-Before","Extra-After","Total  Sessions","TOTAL AMOUNT","SIGNATURE"]
[null,null,null,null,null,"SHIFT ---->",null,"I","II","I","II","I","II","I","II","I","II","I","II","I","II","I","II","I","II","I","II"]
[null,{"$f":"CONCATENATE(\"Students strength (Max. \",MAX(H9:AA9),\") >>\")","v":"Students strength (Max. 0) >>"}]
[1,null,null,null,null,null,null,null,null,null,null,null,null,null,null,null,null,null,null,null,null,null,null,null,null,null,null,null,null,{"$f":"SUM(H10:AC10)","v":0},{"$f":"IF(G10=\"\",0,IF(B10=\"\",0,IF(G10=11,AD10*100,IF(G10=12,AD10*75,IF(G10=13,ROUND(AD10*70,0),IF(G10=14,AD10*40,IF(G10=15,AD10*30)))))))","v":0}]
[2,null,null,null,null,null,null,null,null,null,null,null,null,null,null,null,null,null,null,null,null,null,null,null,null,null,null,null,null,0,{"$f":"IF(G11=\"\",0,IF(B11=\"\",0,IF(G11=11,AD11*100,IF(G11=12,AD11*75,IF(G11=13,ROUND(AD11*70,0),IF(G11=14,AD11*40,IF(G11=15,AD11*30)))))))","v":0}]
[3,null,null,null,null,null,null,null,null,null,null,null,null,null,null,null,null,null,null,null,null,null,null,null,null,null,null,null,null,{"$f":"SUM(H12:AC12)","v":0},{"$f":"IF(G12=\"\",0,IF(B12=\"\",0,IF(G12=11,AD12*100,IF(G12=12,AD12*75,IF(G12=13,ROUND(AD12*70,0),IF(G12=14,AD12*40,IF(G12=15,AD12*30)))))))","v":0}]
[4,null,null,null,null,null,null,null,null,null,null,null,null,null,null,null,null,null,null,null,null,null,null,null,null,null,null,null,null,{"$f":"SUM(H13:AC13)","v":0},0]
[5,null,null,null,null,null,null,null,null,null,null,null,null,null,null,null,null,null,null,null,null,null,null,null,null,null,null,null,null,{"$f":"SUM(H14:AC14)","v":0},{"$f":"IF(G14=\"\",0,IF(B14=\"\",0,IF(G14=11,AD14*100,IF(G14=12,AD14*75,IF(G14=13,ROUND(AD14*70,0),IF(G14=14,AD14*40,IF(G14=15,AD14*30)))))))","v":0}]
[6,null,null,null,null,null,null,null,null,null,null,null,null,null,null,null,null,null,null,null,null,null,null,null,null,null,null,null,null,{"$f":"SUM(H15:AC15)","v":0},{"$f":"IF(G15=\"\",0,IF(B15=\"\",0,IF(G15=11,AD15*100,IF(G15=12,AD15*75,IF(G15=13,ROUND(AD15*70,0),IF(G15=14,AD15*40,IF(G15=15,AD15*30)))))))","v":0}]
[7,null,null,null,null,null,null,null,null,null,null,null,null,null,null,null,null,null,null,null,null,null,null,null,null,null,null,null,null,{"$f":"SUM(H16:AC16)","v":0},{"$f":"IF(G16=\"\",0,IF(B16=\"\",0,IF(G16=11,AD16*100,IF(G16=12,AD16*75,IF(G16=13,ROUND(AD16*70,0),IF(G16=14,AD16*40,IF(G16=15,AD16*30)))))))","v":0}]
[8,null,null,null,null,null,null,null,null,null,null,null,null,null,null,null,null,null,null,null,null,null,null,null,null,null,null,null,null,{"$f":"SUM(H17:AC17)","v":0},{"$f":"IF(G17=\"\",0,IF(B17=\"\",0,IF(G17=11,AD17*100,IF(G17=12,AD17*75,IF(G17=13,ROUND(AD17*70,0),IF(G17=14,AD17*40,IF(G17=15,AD17*30)))))))","v":0}]
[9,null,null,null,null,null,null,null,null,null,null,null,null,null,null,null,null,null,null,null,null,null,null,null,null,null,null,null,null,{"$f":"SUM(H18:AC18)","v":0},{"$f":"IF(G18=\"\",0,IF(B18=\"\",0,IF(G18=11,AD18*100,IF(G18=12,AD18*75,IF(G18=13,ROUND(AD18*70,0),IF(G18=14,AD18*40,IF(G18=15,AD18*30)))))))","v":0}]
[10,null,null,null,null,null,null,null,null,null,null,null,null,null,null,null,null,null,null,null,null,null,null,null,null,null,null,null,null,{"$f":"SUM(H19:AC19)","v":0},{"$f":"IF(G19=\"\",0,IF(B19=\"\",0,IF(G19=11,AD19*100,IF(G19=12,AD19*75,IF(G19=13,ROUND(AD19*70,0),IF(G19=14,AD19*40,IF(G19=15,AD19*30)))))))","v":0}]
[11,null,null,null,null,null,null,null,null,null,null,null,null,null,null,null,null,null,null,null,null,null,null,null,null,null,null,null,null,0,0]
[12,null,null,null,null,null,null,null,null,null,null,null,null,null,null,null,null,null,null,null,null,null,null,null,null,null,null,null,null,0,0]
[13,null,null,null,null,null,null,null,null,null,null,null,null,null,null,null,null,null,null,null,null,null,null,null,null,null,null,null,null,{"$f":"SUM(H22:AC22)","v":0},{"$f":"IF(G22=\"\",0,IF(B22=\"\",0,IF(G22=11,AD22*100,IF(G22=12,AD22*75,IF(G22=13,ROUND(AD22*70,0),IF(G22=14,AD22*40,IF(G22=15,AD22*30)))))))","v":0}]
[14,null,null,null,null,null,null,null,null,null,null,null,null,null,null,null,null,null,null,null,null,null,null,null,null,null,null,null,null,0,0]
[15,null,null,null,null,null,null,null,null,null,null,null,null,null,null,null,null,null,null,null,null,null,null,null,null,null,null,null,null,{"$f":"SUM(H24:AC24)","v":0},{"$f":"IF(G24=\"\",0,IF(B24=\"\",0,IF(G24=11,AD24*100,IF(G24=12,AD24*75,IF(G24=13,ROUND(AD24*70,0),IF(G24=14,AD24*40,IF(G24=15,AD24*30)))))))","v":0}]
[16,null,null,null,null,null,null,null,null,null,null,null,null,null,null,null,null,null,null,null,null,null,null,null,null,null,null,null,null,0,0]
[17,null,null,null,null,null,null,null,null,null,null,null,null,null,null,null,null,null,null,null,null,null,null,null,null,null,null,null,null,{"$f":"SUM(H26:AC26)","v":0},{"$f":"IF(G26=\"\",0,IF(B26=\"\",0,IF(G26=11,AD26*100,IF(G26=12,AD26*75,IF(G26=13,ROUND(AD26*70,0),IF(G26=14,AD26*40,IF(G26=15,AD26*30)))))))","v":0}]
[18,null,null,null,null,null,null,null,null,null,null,null,null,null,null,null,null,null,null,null,null,null,null,null,null,null,null,null,null,0,0]
[19,null,null,null,null,null,null,null,null,null,null,null,null,null,null,null,null,null,null,null,null,null,null,null,null,null,null,null,null,{"$f":"SUM(H28:AC28)","v":0},{"$f":"IF(G28=\"\",0,IF(B28=\"\",0,IF(G28=11,AD28*100,IF(G28=12,AD28*75,IF(G28=13,ROUND(AD28*70,0),IF(G28=14,AD28*40,IF(G28=15,AD28*30)))))))","v":0}]
[20,null,null,null,null,null,null,null,null,null,null,null,null,null,null,null,null,null,null,null,null,null,null,null,null,null,null,null,null,0,0]
[21,null,null,null,null,null,null,null,null,null,null,null,null,null,null,null,null,null,null,null,null,null,null,null,null,null,null,null,null,{"$f":"SUM(H30:AC30)","v":0},{"$f":"IF(G30=\"\",0,IF(B30=\"\",0,IF(G30=11,AD30*100,IF(G30=12,AD30*75,IF(G30=13,ROUND(AD30*70,0),IF(G30=14,AD30*40,IF(G30=15,AD30*30)))))))","v":0}]
[22,null,null,null,null,null,null,null,null,null,null,null,null,null,null,null,null,null,null,null,null,null,null,null,null,null,null,null,null,0,0]
[23,null,null,null,null,null,null,null,null,null,null,null,null,null,null,null,null,null,null,null,null,null,null,null,null,null,null,null,null,{"$f":"SUM(H32:AC32)","v":0},{"$f":"IF(G32=\"\",0,IF(B32=\"\",0,IF(G32=11,AD32*100,IF(G32=12,AD32*75,IF(G32=13,ROUND(AD32*70,0),IF(G32=14,AD32*40,IF(G32=15,AD32*30)))))))","v":0}]
[24,null,null,null,null,null,null,null,null,null,null,null,null,null,null,null,null,null,null,null,null,null,null,null,null,null,null,null,null,0,0]
[25,null,null,null,null,null,null,null,null,null,null,null,null,null,null,null,null,null,null,null,null,null,null,null,null,null,null,null,null,{"$f":"SUM(H34:AC34)","v":0},{"$f":"IF(G34=\"\",0,IF(B34=\"\",0,IF(G34=11,AD34*100,IF(G34=12,AD34*75,IF(G34=13,ROUND(AD34*70,0),IF(G34=14,AD34*40,IF(G34=15,AD34*30)))))))","v":0}]
["TOTAL ",null,null,null,null,null,null,null,null,null,null,null,null,null,null,null,null,null,null,null,null,null,null,null,null,null,null,null,null,null,{"$f":"SUM(AE9:AE33)","v":0}]
[null,"No.                  e.My dk;kZy; ç;ksxkFkZ\nfnukad                     çekf.kr ,oa ikfjr \n\n"]
[null,"Total Rs.",{"$f":"+AE35","v":0},null,null,null,null,null,null,null,null,null,null,null,null,null,"çek.k i= %& \n1- lwph esa vafdr fcyksa dk iwoZ esa Hkqxrku ugha gqvk gS ,oa ;g fcy izFke ckj izsf\"kr fd;s tk jgs gSA\n2- fcyksa esa vafdr nkos dh jkf'k dh tkap laLFkk esa miyC/k jsdMZ ls dj yh x;h gS ,oa og lgh gSA"]
[null,"Rs. In Words",{"$f":"IF(AE35>0, SUBSTITUTE(spellnumber(AE35),\"Dollars and No Cents\",\"only\"),\"Rupees ….Nil ….\")","v":"Rupees ….Nil …."}]
[null,"la;qDr funs'kd ¼jftLVªkj½]",null,null,null,null,"dk;kZy;k/;{k",null,null,null,null,null,null,null,null,null,"fnukad",null,null,null,null,null,null,null,null,null,null,null,null,"iz/kkukpk;Z gLrk{;j e; lhy"]

{"sheet":"Form_44(2nd Year)","index":1,"n_rows":39,"n_cols":43,"rows_kept":39,"cut":false,"hidden":false,"merged":[[38,40,38,43],[8,1,8,6],[34,0,34,29],[36,16,37,31],[38,6,38,15],[38,16,38,17],[38,29,38,31],[35,1,35,15],[35,16,35,31],[3,0,3,31],[4,0,4,31],[6,0,8,0],[6,27,8,27],[6,28,8,28],[6,29,8,29],[6,30,8,30],[6,31,8,31],[6,7,6,8],[6,9,6,10],[6,11,6,12],[6,13,6,14],[6,15,6,16],[6,17,6,18],[7,5,7,6],[6,19,6,20],[2,2,2,31],[0,0,0,29],[0,30,0,31],[1,0,1,13],[1,14,1,18],[1,19,1,26],[1,27,1,28],[1,29,1,31],[2,0,2,1],[5,7,5,26],[5,5,6,5],[5,2,6,2],[5,3,6,3],[5,4,6,4],[6,21,6,22],[6,23,6,24],[6,25,6,26]]}
["çkfof/kd f'k{kk e.My] jktLFkku] tks/kiqj ",null,null,null,null,null,null,null,null,null,null,null,null,null,null,null,null,null,null,null,null,null,null,null,null,null,null,null,null,null,"FORM-44",null,null,null,null,null,null,0,null,null,null,0,11]
["çkfof/kd f'k{kk e.My] jktLFkku }kjk vk;ksftr ijh{kk gsrq dk;Zjr vf/kdkjh @ deZpkfj;ksa ds ijh{kk ikfjJfed foi= ¼f}rh; o\"kZ½",null,null,null,null,null,null,null,null,null,null,null,null,null,"ijh{kk dsUnz dksM >>>",null,null,null,null,null,null,null,null,null,null,null,null,"l=",null,"2016-17",null,null,null,null,null,null,null,1,null,null,null,1,12]
["laLFkku dk uke o iw.kZ irk e; dksM >>>",null,null,null,null,null,null,null,null,null,null,null,null,null,null,null,null,null,null,null,null,null,null,null,null,null,null,null,null,null,null,null,null,null,null,null,null,2,null,null,null,2,13]
["¼1½ dkWye dksM esa ijh{kk dsUnz v/kh{kd gsrq 11] vfrfjDr ijh{kk dsUnz v/kh{kd gsrq 12] ijh{kk oh{kd gsrq 13] ea=kyf;d 14 o prqFkZ Js.kh deZpkjh gsrq 15 vafdr djsaA",null,null,null,null,null,null,null,null,null,null,null,null,null,null,null,null,null,null,null,null,null,null,null,null,null,null,null,null,null,null,null,null,null,null,null,null,null,null,null,null,null,14]
["¼2½ fnukad@ikjh okys dkWye esa mifLFkfr fnol@ikjh ds fnu 1] 2 vafdr djsaA vuqifLFkfr ij 0 vafdr djsa ¼;k dkWye [kkyh NksM+s½A dqy ikjh o dqy jkf'k okys dkWye esas x.kuk Lor% gh gksxhA vr% bl dkWye esa viuh rjQ ls dqN vafdr ugha djsaA ",null,null,null,null,null,null,null,null,null,null,null,null,null,null,null,null,null,null,null,null,null,null,null,null,null,null,null,null,null,null,null,null,null,null,null,null,null,null,null,null,null,15]
[null,null,"Bank Name","IFSC Code ","Account No.","PAN Number",null,"Exam Date"]
["SN.","Invigilator name in capital letters\n(Sh./Mrs./Miss)",null,null,null,null,"CODE  ","2017-08-17",null,"2017-08-19",null,"2017-08-22",null,"2017-08-28",null,"2017-08-30",null,"2017-09-04",null,"2017-09-06",null,"2017-09-08",null,"2017-10-05",null,"2017-10-06",null,"Extra-Before","Extra-After","Total  Sessions","TOTAL AMOUNT","SIGNATURE"]
[null,null,null,null,null,"SHIFT ---->",null,"I","II","I","II","I","II","I","II","I","II","I","II","I","II","I","II","I","II","I","II"]
[null,{"$f":"CONCATENATE(\"Students strength (Max. \",MAX(H9:AA9),\") >>\")","v":"Students strength (Max. 0) >>"}]
[1,null,null,null,null,null,null,null,null,null,null,null,null,null,null,null,null,null,null,null,null,null,null,null,null,null,null,null,null,{"$f":"SUM(H10:AC10)","v":0},{"$f":"IF(G10=\"\",0,IF(B10=\"\",0,IF(G10=11,AD10*100,IF(G10=12,AD10*75,IF(G10=13,ROUND(AD10*70,0),IF(G10=14,AD10*40,IF(G10=15,AD10*30)))))))","v":0}]
[2,null,null,null,null,null,null,null,null,null,null,null,null,null,null,null,null,null,null,null,null,null,null,null,null,null,null,null,null,0,{"$f":"IF(G11=\"\",0,IF(B11=\"\",0,IF(G11=11,AD11*100,IF(G11=12,AD11*75,IF(G11=13,ROUND(AD11*70,0),IF(G11=14,AD11*40,IF(G11=15,AD11*30)))))))","v":0}]
[3,null,null,null,null,null,null,null,null,null,null,null,null,null,null,null,null,null,null,null,null,null,null,null,null,null,null,null,null,{"$f":"SUM(H12:AC12)","v":0},{"$f":"IF(G12=\"\",0,IF(B12=\"\",0,IF(G12=11,AD12*100,IF(G12=12,AD12*75,IF(G12=13,ROUND(AD12*70,0),IF(G12=14,AD12*40,IF(G12=15,AD12*30)))))))","v":0}]
[4,null,null,null,null,null,null,null,null,null,null,null,null,null,null,null,null,null,null,null,null,null,null,null,null,null,null,null,null,{"$f":"SUM(H13:AC13)","v":0},{"$f":"IF(G13=\"\",0,IF(B13=\"\",0,IF(G13=11,AD13*100,IF(G13=12,AD13*75,IF(G13=13,ROUND(AD13*70,0),IF(G13=14,AD13*40,IF(G13=15,AD13*30)))))))","v":0}]
[5,null,null,null,null,null,null,null,null,null,null,null,null,null,null,null,null,null,null,null,null,null,null,null,null,null,null,null,null,{"$f":"SUM(H14:AC14)","v":0},{"$f":"IF(G14=\"\",0,IF(B14=\"\",0,IF(G14=11,AD14*100,IF(G14=12,AD14*75,IF(G14=13,ROUND(AD14*70,0),IF(G14=14,AD14*40,IF(G14=15,AD14*30)))))))","v":0}]
[6,null,null,null,null,null,null,null,null,null,null,null,null,null,null,null,null,null,null,null,null,null,null,null,null,null,null,null,null,{"$f":"SUM(H15:AC15)","v":0},{"$f":"IF(G15=\"\",0,IF(B15=\"\",0,IF(G15=11,AD15*100,IF(G15=12,AD15*75,IF(G15=13,ROUND(AD15*70,0),IF(G15=14,AD15*40,IF(G15=15,AD15*30)))))))","v":0}]
[7,null,null,null,null,null,null,null,null,null,null,null,null,null,null,null,null,null,null,null,null,null,null,null,null,null,null,null,null,0,0]
[8,null,null,null,null,null,null,null,null,null,null,null,null,null,null,null,null,null,null,null,null,null,null,null,null,null,null,null,null,0,0]
[9,null,null,null,null,null,null,null,null,null,null,null,null,null,null,null,null,null,null,null,null,null,null,null,null,null,null,null,null,0,0]
[10,null,null,null,null,null,null,null,null,null,null,null,null,null,null,null,null,null,null,null,null,null,null,null,null,null,null,null,null,0,0]
[11,null,null,null,null,null,null,null,null,null,null,null,null,null,null,null,null,null,null,null,null,null,null,null,null,null,null,null,null,{"$f":"SUM(H20:AC20)","v":0},{"$f":"IF(G20=\"\",0,IF(B20=\"\",0,IF(G20=11,AD20*100,IF(G20=12,AD20*75,IF(G20=13,ROUND(AD20*70,0),IF(G20=14,AD20*40,IF(G20=15,AD20*30)))))))","v":0}]
[12,null,null,null,null,null,null,null,null,null,null,null,null,null,null,null,null,null,null,null,null,null,null,null,null,null,null,null,null,0,0]
[13,null,null,null,null,null,null,null,null,null,null,null,null,null,null,null,null,null,null,null,null,null,null,null,null,null,null,null,null,0,0]
[14,null,null,null,null,null,null,null,null,null,null,null,null,null,null,null,null,null,null,null,null,null,null,null,null,null,null,null,null,0,0]
[15,null,null,null,null,null,null,null,null,null,null,null,null,null,null,null,null,null,null,null,null,null,null,null,null,null,null,null,null,0,0]
[16,null,null,null,null,null,null,null,null,null,null,null,null,null,null,null,null,null,null,null,null,null,null,null,null,null,null,null,null,0,0]
[17,null,null,null,null,null,null,null,null,null,null,null,null,null,null,null,null,null,null,null,null,null,null,null,null,null,null,null,null,0,0]
[18,null,null,null,null,null,null,null,null,null,null,null,null,null,null,null,null,null,null,null,null,null,null,null,null,null,null,null,null,0,0]
[19,null,null,null,null,null,null,null,null,null,null,null,null,null,null,null,null,null,null,null,null,null,null,null,null,null,null,null,null,0,0]
[20,null,null,null,null,null,null,null,null,null,null,null,null,null,null,null,null,null,null,null,null,null,null,null,null,null,null,null,null,{"$f":"SUM(H29:AC29)","v":0},0]
[21,null,null,null,null,null,null,null,null,null,null,null,null,null,null,null,null,null,null,null,null,null,null,null,null,null,null,null,null,0,0]
[22,null,null,null,null,null,null,null,null,null,null,null,null,null,null,null,null,null,null,null,null,null,null,null,null,null,null,null,null,0,0]
[23,null,null,null,null,null,null,null,null,null,null,null,null,null,null,null,null,null,null,null,null,null,null,null,null,null,null,null,null,0,0]
[24,null,null,null,null,null,null,null,null,null,null,null,null,null,null,null,null,null,null,null,null,null,null,null,null,null,null,null,null,0,0]
[25,null,null,null,null,null,null,null,null,null,null,null,null,null,null,null,null,null,null,null,null,null,null,null,null,null,null,null,null,0,0]
["TOTAL ",null,null,null,null,null,null,null,null,null,null,null,null,null,null,null,null,null,null,null,null,null,null,null,null,null,null,null,null,null,{"$f":"SUM(AE9:AE34)","v":0}]
[null,"No.                  e.My dk;kZy; ç;ksxkFkZ\nfnukad                     çekf.kr ,oa ikfjr \n\n"]
[null,"Total Rs.",{"$f":"+AE35","v":0},null,null,null,null,null,null,null,null,null,null,null,null,null,"çek.k i= %& \n1- lwph esa vafdr fcyksa dk iwoZ esa Hkqxrku ugha gqvk gS ,oa ;g fcy izFke ckj izsf\"kr fd;s tk jgs gSA\n2- fcyksa esa vafdr nkos dh jkf'k dh tkap laLFkk esa miyC/k jsdMZ ls dj yh x;h gS ,oa og lgh gSA"]
[null,"Rs. In Words",{"$f":"IF(AE35>0, SUBSTITUTE(spellnumber(AE35),\"Dollars and No Cents\",\"only\"),\"Rupees ….Nil ….\")","v":"Rupees ….Nil …."}]
[null,"la;qDr funs'kd ¼jftLVªkj½]",null,null,null,null,"dk;kZy;k/;{k",null,null,null,null,null,null,null,null,null,"fnukad",null,null,null,null,null,null,null,null,null,null,null,null,"iz/kkukpk;Z gLrk{;j e; lhy"]

{"sheet":"Form_44(3rd Year) ","index":2,"n_rows":39,"n_cols":43,"rows_kept":39,"cut":false,"hidden":false,"merged":[[0,0,0,29],[0,30,0,31],[1,0,1,13],[1,14,1,18],[1,19,1,26],[1,27,1,28],[1,29,1,31],[2,0,2,1],[2,2,2,31],[3,0,3,31],[4,0,4,31],[5,2,6,2],[5,3,6,3],[5,4,6,4],[5,5,6,5],[5,7,5,26],[6,0,8,0],[34,0,34,29],[6,19,6,20],[6,21,6,22],[6,23,6,24],[6,25,6,26],[6,27,8,27],[6,28,8,28],[6,7,6,8],[6,9,6,10],[6,11,6,12],[6,13,6,14],[6,15,6,16],[6,17,6,18],[6,29,8,29],[6,30,8,30],[6,31,8,31],[7,5,7,6],[8,1,8,6],[38,40,38,43],[35,1,35,15],[35,16,35,31],[36,16,37,31],[38,6,38,15],[38,16,38,17],[38,29,38,31]]}
["çkfof/kd f'k{kk e.My] jktLFkku] tks/kiqj ",null,null,null,null,null,null,null,null,null,null,null,null,null,null,null,null,null,null,null,null,null,null,null,null,null,null,null,null,null,"FORM-44",null,null,null,null,null,null,0,null,null,null,0,11]
["çkfof/kd f'k{kk e.My] jktLFkku }kjk vk;ksftr ijh{kk gsrq dk;Zjr vf/kdkjh @ deZpkfj;ksa ds ijh{kk ikfjJfed foi= ¼r`rh; o\"kZ½",null,null,null,null,null,null,null,null,null,null,null,null,null,"ijh{kk dsUnz dksM >>>",null,null,null,null,null,null,null,null,null,null,null,null,"l=",null,"2016-17",null,null,null,null,null,null,null,1,null,null,null,1,12]
["laLFkku dk uke o iw.kZ irk e; dksM >>>",null,null,null,null,null,null,null,null,null,null,null,null,null,null,null,null,null,null,null,null,null,null,null,null,null,null,null,null,null,null,null,null,null,null,null,null,2,null,null,null,2,13]
["¼1½ dkWye dksM esa ijh{kk dsUnz v/kh{kd gsrq 11] vfrfjDr ijh{kk dsUnz v/kh{kd gsrq 12] ijh{kk oh{kd gsrq 13] ea=kyf;d 14 o prqFkZ Js.kh deZpkjh gsrq 15 vafdr djsaA",null,null,null,null,null,null,null,null,null,null,null,null,null,null,null,null,null,null,null,null,null,null,null,null,null,null,null,null,null,null,null,null,null,null,null,null,null,null,null,null,null,14]
["¼2½ fnukad@ikjh okys dkWye esa mifLFkfr fnol@ikjh ds fnu 1] 2 vafdr djsaA vuqifLFkfr ij 0 vafdr djsa ¼;k dkWye [kkyh NksM+s½A dqy ikjh o dqy jkf'k okys dkWye esas x.kuk Lor% gh gksxhA vr% bl dkWye esa viuh rjQ ls dqN vafdr ugha djsaA ",null,null,null,null,null,null,null,null,null,null,null,null,null,null,null,null,null,null,null,null,null,null,null,null,null,null,null,null,null,null,null,null,null,null,null,null,null,null,null,null,null,15]
[null,null,"Bank Name","IFSC Code ","Account No.","PAN Number",null,"Exam Date"]
["SN.","Invigilator name in capital letters\n(Sh./Mrs./Miss)",null,null,null,null,"CODE  ",null,null,null,null,null,null,null,null,null,null,null,null,null,null,null,null,null,null,null,null,"Extra-Before","Extra-After","Total  Sessions","TOTAL AMOUNT","SIGNATURE"]
[null,null,null,null,null,"SHIFT ---->",null,"I","II","I","II","I","II","I","II","I","II","I","II","I","II","I","II","I","II","I","II"]
[null,{"$f":"CONCATENATE(\"Students strength (Max. \",MAX(H9:AA9),\") >>\")","v":"Students strength (Max. 0) >>"}]
[1,null,null,null,null,null,null,null,null,null,null,null,null,null,null,null,null,null,null,null,null,null,null,null,null,null,null,null,null,{"$f":"SUM(H10:AC10)","v":0},{"$f":"IF(G10=\"\",0,IF(B10=\"\",0,IF(G10=11,AD10*100,IF(G10=12,AD10*75,IF(G10=13,ROUND(AD10*70,0),IF(G10=14,AD10*40,IF(G10=15,AD10*30)))))))","v":0}]
[2,null,null,null,null,null,null,null,null,null,null,null,null,null,null,null,null,null,null,null,null,null,null,null,null,null,null,null,null,0,0]
[3,null,null,null,null,null,null,null,null,null,null,null,null,null,null,null,null,null,null,null,null,null,null,null,null,null,null,null,null,{"$f":"SUM(H12:AC12)","v":0},0]
[4,null,null,null,null,null,null,null,null,null,null,null,null,null,null,null,null,null,null,null,null,null,null,null,null,null,null,null,null,0,0]
[5,null,null,null,null,null,null,null,null,null,null,null,null,null,null,null,null,null,null,null,null,null,null,null,null,null,null,null,null,0,0]
[6,null,null,null,null,null,null,null,null,null,null,null,null,null,null,null,null,null,null,null,null,null,null,null,null,null,null,null,null,0,0]
[7,null,null,null,null,null,null,null,null,null,null,null,null,null,null,null,null,null,null,null,null,null,null,null,null,null,null,null,null,0,0]
[8,null,null,null,null,null,null,null,null,null,null,null,null,null,null,null,null,null,null,null,null,null,null,null,null,null,null,null,null,0,0]
[9,null,null,null,null,null,null,null,null,null,null,null,null,null,null,null,null,null,null,null,null,null,null,null,null,null,null,null,null,0,0]
[10,null,null,null,null,null,null,null,null,null,null,null,null,null,null,null,null,null,null,null,null,null,null,null,null,null,null,null,null,0,0]
[11,null,null,null,null,null,null,null,null,null,null,null,null,null,null,null,null,null,null,null,null,null,null,null,null,null,null,null,null,0,0]
[12,null,null,null,null,null,null,null,null,null,null,null,null,null,null,null,null,null,null,null,null,null,null,null,null,null,null,null,null,0,0]
[13,null,null,null,null,null,null,null,null,null,null,null,null,null,null,null,null,null,null,null,null,null,null,null,null,null,null,null,null,0,0]
[14,null,null,null,null,null,null,null,null,null,null,null,null,null,null,null,null,null,null,null,null,null,null,null,null,null,null,null,null,0,0]
[15,null,null,null,null,null,null,null,null,null,null,null,null,null,null,null,null,null,null,null,null,null,null,null,null,null,null,null,null,0,0]
[16,null,null,null,null,null,null,null,null,null,null,null,null,null,null,null,null,null,null,null,null,null,null,null,null,null,null,null,null,0,0]
[17,null,null,null,null,null,null,null,null,null,null,null,null,null,null,null,null,null,null,null,null,null,null,null,null,null,null,null,null,0,0]
[18,null,null,null,null,null,null,null,null,null,null,null,null,null,null,null,null,null,null,null,null,null,null,null,null,null,null,null,null,0,0]
[19,null,null,null,null,null,null,null,null,null,null,null,null,null,null,null,null,null,null,null,null,null,null,null,null,null,null,null,null,0,0]
[20,null,null,null,null,null,null,null,null,null,null,null,null,null,null,null,null,null,null,null,null,null,null,null,null,null,null,null,null,0,0]
[21,null,null,null,null,null,null,null,null,null,null,null,null,null,null,null,null,null,null,null,null,null,null,null,null,null,null,null,null,0,0]
[22,null,null,null,null,null,null,null,null,null,null,null,null,null,null,null,null,null,null,null,null,null,null,null,null,null,null,null,null,0,0]
[23,null,null,null,null,null,null,null,null,null,null,null,null,null,null,null,null,null,null,null,null,null,null,null,null,null,null,null,null,0,0]
[24,null,null,null,null,null,null,null,null,null,null,null,null,null,null,null,null,null,null,null,null,null,null,null,null,null,null,null,null,0,0]
[25,null,null,null,null,null,null,null,null,null,null,null,null,null,null,null,null,null,null,null,null,null,null,null,null,null,null,null,null,0,0]
["TOTAL ",null,null,null,null,null,null,null,null,null,null,null,null,null,null,null,null,null,null,null,null,null,null,null,null,null,null,null,null,null,{"$f":"SUM(AE9:AE34)","v":0}]
[null,"No.                  e.My dk;kZy; ç;ksxkFkZ\nfnukad                     çekf.kr ,oa ikfjr \n\n"]
[null,"Total Rs.",{"$f":"+AE35","v":0},null,null,null,null,null,null,null,null,null,null,null,null,null,"çek.k i= %& \n1- lwph esa vafdr fcyksa dk iwoZ esa Hkqxrku ugha gqvk gS ,oa ;g fcy izFke ckj izsf\"kr fd;s tk jgs gSA\n2- fcyksa esa vafdr nkos dh jkf'k dh tkap laLFkk esa miyC/k jsdMZ ls dj yh x;h gS ,oa og lgh gSA"]
[null,"Rs. In Words",{"$f":"IF(AE35>0, SUBSTITUTE(spellnumber(AE35),\"Dollars and No Cents\",\"only\"),\"Rupees ….Nil ….\")","v":"Rupees ….Nil …."}]
[null,"la;qDr funs'kd ¼jftLVªkj½]",null,null,null,null,"dk;kZy;k/;{k",null,null,null,null,null,null,null,null,null,"fnukad",null,null,null,null,null,null,null,null,null,null,null,null,"iz/kkukpk;Z gLrk{;j e; lhy"]

{"sheet":"BILL_28","index":3,"n_rows":37,"n_cols":9,"rows_kept":37,"cut":false,"hidden":false,"merged":[[34,0,34,3],[34,4,34,8],[36,5,36,8],[19,1,19,2],[20,1,20,2],[22,1,22,2],[23,1,23,2],[25,0,26,5],[33,0,33,6],[18,1,18,2],[4,2,4,3],[4,5,4,8],[5,7,5,8],[6,7,6,8],[7,0,8,5],[7,8,9,8],[16,0,17,2],[16,4,16,5],[16,6,16,7],[17,4,17,5],[17,6,17,7],[3,0,3,2],[3,3,3,8],[2,1,2,8],[0,0,0,6],[0,7,0,8],[1,0,1,3],[1,6,1,8]]}
["çkfof/kd f'k{kk e.My] jktLFkku] tks/kiqj ",null,null,null,null,null,null,"FORM 28"]
["çkfof/kd f'k{kk e.My] jktLFkku }kjk vk;ksftr çk;ksfxd ijh{kk gsrq dk;Zjr vf/kdkjh @ deZpkfj;ksa ds \nijh{kk ikfjJfed foi= ",null,null,null,"laLFkk dksM"]
["çsf\"kfr","% la;qDr funs'kd ¼xksiuh;½] çkfof/kd f'k{kk e.My] jktLFkku] tks/kiqj"]
["izs\"kd laLFkku dk uke o iw.kZ irk"]
["fiu dksM",null,null,null,"bZ@esy"]
["laLFkk iz/kku uke",null,null,null,null,null,"Qksu ¼eksck-½"]
["ys[kkdkj uke",null,null,null,null,null,"Qksu ¼eksck-½"]
["¼izk;ksfxd ijh{kk QkeZ 28½  izk;ksfxd ,oa okbZokoklh ijh{kk",null,null,null,null,null,"ckâ; ijh{kd","vkarfjd ijh{kd","SIGNATURE"]
[null,null,null,null,null,null,"17 @ 15","18 @ 15"]
["Ø-l-","fo\"k; dksM","uke dkfeZd","in dksM"," Nk= la[;k","dk;Z fnol","fnukad","jkf'k"]
[null,null,null,null,null,null,null,{"$f":"IF(D11=17,IF(E11>20,(E11*15+F11*45),(300+F11*45)),IF(D11=18,IF(E11<20,300,E11*15)))","v":false}]
[null,null,null,null,null,null,null,{"$f":"IF(D12=17,IF(E12>20,(E12*15+F12*45),(300+F12*45)),IF(D12=18,IF(E12<20,300,E12*15)))","v":false}]
[null,null,null,null,null,null,null,{"$f":"IF(D13=17,IF(E13>20,(E13*15+F13*45),(300+F13*45)),IF(D13=18,IF(E13<20,300,E13*15)))","v":false}]
[null,null,null,null,null,null,null,{"$f":"IF(D14=17,IF(E14>20,(E14*15+F14*45),(300+F14*45)),IF(D14=18,IF(E14<20,300,E14*15)))","v":false}]
[null,null,null,null,null,null,null,{"$f":"IF(D15=17,IF(E15>20,(E15*15+F15*45),(300+F15*45)),IF(D15=18,IF(E15<20,300,E15*15)))","v":false}]
["TOTAL  28  A.",null,null,null,null,null,null,{"$f":"SUM(H11:H15)","v":0}]
["¼izk;ksfxd ijh{kk QkeZ 28½  izk;ksfxd ,oa okbZokoklh ijh{kk",null,null,"Ikjh{kk dsUnz v/kh{kd","VsDuhf'k;u",null," ysc vVs"]
[null,null,null,"11 @ 100","21 @  18",null,"22 @ 12"]
["Ø-l-","uke dkfeZd",null,"in dksM","dqy ikjh","dk;Z fnukad    fo\"k; dksM ",null,"jkf'k"]
[null,null,null,null,null,null,null,{"$f":"IF(D20=11,E20*100,IF(D20=21,E20*18,IF(D20=22,ROUND(E20*12,0))))","v":false}]
[null,null,null,null,null,null,null,{"$f":"IF(D21=11,E21*100,IF(D21=21,E21*18,IF(D21=22,ROUND(E21*12,0))))","v":false}]
[null,null,null,null,null,null,null,{"$f":"IF(D22=11,E22*100,IF(D22=21,E22*18,IF(D22=22,ROUND(E22*12,0))))","v":false}]
[null,null,null,null,null,null,null,{"$f":"IF(D23=11,E23*100,IF(D23=21,E23*18,IF(D23=22,ROUND(E23*12,0))))","v":false}]
[null,null,null,null,null,null,null,{"$f":"IF(D24=11,E24*100,IF(D24=21,E24*18,IF(D24=22,ROUND(E24*12,0))))","v":false}]
["TOTAL  28  B.",null,null,null,null,null,null,{"$f":"SUM(H20:H24)","v":0}]
["¼ijh{kk 28½ izkstsDV ijh{kk",null,null,null,null,null,"ckâ; izkstsDV ijh{kd","vkarfjd izkstsDV ijh{kd"]
[null,null,null,null,null,null,"19 @ 15","20 @ 15"]
["Ø-l-","czkap","uke dkfeZd","in dksM"," Nk= la[;k","dk;Z fnukaad","fnukad","jkf'k"]
[null,null,null,null,null,null,null,{"$f":"IF(D29=19,IF(E29<=8,120+45+128,E29*15+45+128),IF(D29=20,IF(E29<=8,E29*15+128,E29*15+128)))","v":false}]
[null,null,null,null,null,null,null,{"$f":"IF(D30=19,IF(E30<=8,120+45+128,E30*15+45+128),IF(D30=20,IF(E30<=8,E30*15+128,E30*15+128)))","v":false}]
[null,null,null,null,null,null,null,{"$f":"IF(D31=19,IF(E31<=8,120+45+128,E31*15+45+128),IF(D31=20,IF(E31<=8,E31*15+128,E31*15+128)))","v":false}]
[null,null,null,null,null,null,null,{"$f":"IF(D32=19,IF(E32<=8,120+45+128,E32*15+45+128),IF(D32=20,IF(E32<=8,E32*15+128,E32*15+128)))","v":false}]
["TOTAL  28 C",null,null,null,null,null,null,{"$f":"SUM(H29:H32)","v":0}]
["GRAND TOTAL  28 (A+B+C)",null,null,null,null,null,null,{"$f":"SUM(H30:H33)","v":0}]
["No.                    e.My dk;kZy; ç;ksxkFkZ\nfnukad                       çekf.kr ,oa ikfjr \ndqy jkf'k :Ik;s ----------------------------------------------------------\nv{kjs :Ik;s -----------------------------------------------------------------\n\n",null,null,null,"çek.k i= %& \nizekf.kr fd;k tkrk gS fd izkfof/kd f'k{kk e.My] tks/kiqj dh ijh{kk ckcr~ le; le; ij izlkfjr funsZ'kksa dh ikyuk djrs gq, fu/kkZfjr ekin.M vuqlkj çk;ksfxd o izkstsDV ijh{kk gsrq dkfeZdksa dh lsok,sa izkIr dj ikfjJfed nkok] e.My funsZ'kkuqlkj vko';d foi=ksa dks layXu djrs gq, izLrqr fd;k x;k gSA "]
[]
["la;qDr funs'kd ¼xksiuh;½]",null,null,"dk;kZy;k/;{k","fnukad","iz/kkukpk;Z gLrk{;j e; lhy"]

{"sheet":"TOTAL_BILL_AMOUNT","index":4,"n_rows":19,"n_cols":11,"rows_kept":19,"cut":false,"hidden":false,"merged":[[9,0,9,1],[9,2,9,4],[9,6,9,10],[10,0,10,10],[7,0,7,1],[7,2,7,4],[7,6,7,10],[8,0,8,1],[8,2,8,4],[8,6,8,10],[5,0,5,1],[5,2,5,4],[5,6,5,10],[6,0,6,1],[6,2,6,4],[6,6,6,10],[3,0,3,1],[3,2,3,4],[3,6,3,10],[4,0,4,1],[4,2,4,4],[4,6,4,10],[0,7,0,10],[1,0,1,1],[1,2,1,10],[2,0,2,1],[2,2,2,4],[2,6,2,10]]}
[null,"izkfof/kd f'k{kk e.My]jktLFkku]tks/kiqj ",null,null,null,"ladfyr Hkqxrku fooj.k çi=",null," EXAM MAY 2012"]
["laLFkku dk uke o iw.kZ irk %"]
["`'kgj@ xkoa dk uke",null,null,null,null,"laLFkku dksM"]
["iqfyl Fkkuk {ks=",null,null,null,null,"fiu dksM"]
["ftyk",null,null,null,null,"Qksu uEcj ysaM ykbZu"]
["laLFkk iz/kku uke",null,null,null,null,"bZ@esy"]
["laLFkk iz/kku eksckbZy u-",null,null,null,null,"laLFkku cSad dk uke"]
["ys[kkdkj uke",null,null,null,null,"cSad vkbZ,Qlh dksM"]
["ys[kkdkj eksckbZy u-",null,null,null,null,"[kkrk la[;k"]
["mRrj iqfLrdk Hk.Mkj vo'ks\"k la[;k",null,null,null,null,"dqy nkok jkf'k"]
["izek.k i=  % \n1- izekf.kr fd;k tkrk gS fd izkfof/kd f'k{kk e.My] tks/kiqj dh ijh{kk ckcr~ le; le; ij izlkfjr funsZ'kksa dh ikyuk djrs gq, fu/kkZfjr ekin.M vuqlkj lS)kfUrd] çk;ksfxd o izkstsDV ijh{kk gsrq dkfeZdksa dh lsok,sa izkIr dj ikfjJfed nkok izi= 28 o 44 esa e.My funsZ'kkuqlkj vko';d foi=ksa dks layXu djrs gq, izLrqr fd;k x;k gSA mDr izi=ksa 28 o 44 ds vk/kkj ij izR;sd vf/kdkjh@ dkfeZd dks ns; dqy aHkqxrku jkf'k ladfyr dh xbZ gSA ijh{kk dsUnz v/kh{kd gsrq 11] vfrfjDr ijh{kk dsUnz v/kh{kd gsrq 12] ijh{kk oh{kd gsrq 13] ea=kyf;d 14 o prqFkZ Js.kh deZpkjh gsrq 15 vafdr djsaA \n2- ladfyr Hkqxrku fooj.k izi=] izi= 28 o 44 Excel Format (Times New Roman Font) esa QhM dj e.My dk;kZy; dks gkMZ dkWih o lkW¶V dkWih ¼lhMh½ esa izLrqr djuk gSA ckg~; ijh{kd ftudk Hkqxrku vfuok;Z gksus ds dkj.k rRdky dk;kZy; vU; dks\"k ls dj fn;k x;k gS] dks fo'ks\"k fooj.k esa vafdr dj fn;k x;k gSA vr% mDr Hkqxrku laLFkk ds cSad [kkrk esa djus dk Je djkosaA ladfyr Hkqxrku fooj.k esa leLr lwpuk English Capital Letter esa usV cSafdax [kkrk fooj.k ls feyku dj English Letters esa vafdr fd, tkus gSaA"]
["Inst. Code","Employe Name","Employe Address"," Bank Name","Bank Branch & City","IFSC Code","Account Number","Bill 28 Amount","Bill 44 Amount","TOTAL","Remarks"]
[]
[]
[]
[]
[]
[]
[null,null,null,null,null,null,null,null,"Principal Signature & Seal"]